[Event "Championnat du monde jeunes U10"]
[Date "2024.11.25"]
[White "Zhang, Oscar Y"]
[Black "Deepak Ambattu, Rithvik"]
[WhiteElo "1817"]
[BlackElo "2063"]
[Round "10.15"]
[Result "0-1"]
[TimeControl "5400+30"]

1. e4 {[%clk 1:30:57]} 1... c5 {[%clk 1:30:52]} 2. Nf3 {[%clk 1:31:20]} 2... d6
{[%clk 1:31:15]} 3. d4 {[%clk 1:31:40]} 3... cxd4 {[%clk 1:31:37]} 4. Nxd4
{[%clk 1:32:01]} 4... Nf6 {[%clk 1:32:02]} 5. Nc3 {[%clk 1:32:23]} 5... a6
{[%clk 1:32:29]} 6. Bg5 {[%clk 1:32:12]} 6... e6 {[%clk 1:32:52]} 7. f4 {[%clk
1:32:28]} 7... Be7 {[%clk 1:33:10]} 8. Qf3 {[%clk 1:32:47]} 8... Qc7 {[%clk
1:33:34]} 9. O-O-O {[%clk 1:32:52]} 9... Nbd7 {[%clk 1:33:44]} 10. g4 {[%clk
1:32:45]} 10... b5 {[%clk 1:34:05]} 11. Bxf6 {[%clk 1:32:56]} 11... Nxf6 {[%clk
1:34:27]} 12. g5 {[%clk 1:32:57]} 12... Nd7 {[%clk 1:34:52]} 13. f5 {[%clk
1:32:59]} 13... O-O {[%clk 1:34:51]} 14. Rg1 {[%clk 1:32:18]} 14... b4 {[%clk
1:34:27]} 15. Nce2 {[%clk 1:30:51]} 15... e5 {[%clk 1:34:15]} 16. Nb3 {[%clk
1:23:45]} 16... f6 {[%clk 1:32:55]} 17. gxf6 {[%clk 1:19:08]} 17... Nxf6 {[%clk
1:25:48]} 18. Ng3 {[%clk 1:15:51]} 18... Bb7 {[%clk 1:18:05]} 19. Nd2 {[%clk
0:48:46]} 19... d5 {[%clk 1:10:45]} 20. Nh5 {[%clk 0:47:15]} 20... Nxh5 {[%clk
1:08:08]} 21. Qxh5 {[%clk 0:47:29]} 21... Bc5 {[%clk 0:47:22]} 22. Rg3 {[%clk
0:46:44]} 22... Qf7 {[%clk 0:34:34]} 23. Qg4 {[%clk 0:39:55]} 23... Rad8 {[%clk
0:29:09]} 24. exd5 {[%clk 0:34:05]} 24... Bxd5 {[%clk 0:28:27]} 25. Bc4 {[%clk
0:34:14]} 25... Bxc4 {[%clk 0:28:15]} 26. Nxc4 {[%clk 0:34:10]} 26... Rxd1+
{[%clk 0:27:18]} 27. Kxd1 {[%clk 0:34:11]} 27... Qd7+ {[%clk 0:14:53]} 28. Rd3
{[%clk 0:34:26]} 28... Qxf5 {[%clk 0:14:00]} 29. Qxf5 {[%clk 0:33:04]} 29...
Rxf5 {[%clk 0:13:56]} 30. Rd5 {[%clk 0:33:10]} 30... Bd4 {[%clk 0:11:13]} 31.
Rd8+ {[%clk 0:33:22]} 31... Rf8 {[%clk 0:09:52]} 32. Rd6 {[%clk 0:33:11]} 32...
Rf1+ {[%clk 0:09:16]} 33. Kd2 {[%clk 0:33:17]} 33... Rf2+ {[%clk 0:06:05]} 34.
Kd3 {[%clk 0:33:14]} 34... Rxh2 {[%clk 0:05:59]} 35. Rxa6 {[%clk 0:33:25]} 35...
h5 {[%clk 0:05:52]} 36. c3 {[%clk 0:31:54]} 36... bxc3 {[%clk 0:05:17]} 37. bxc3
{[%clk 0:32:05]} 37... Rh3+ {[%clk 0:05:40]} 38. Ke4 {[%clk 0:31:58]} 38... Rxc3
{[%clk 0:05:02]} 39. Nxe5 {[%clk 0:32:19]} 39... Bxe5 {[%clk 0:05:09]} 40. Kxe5
{[%clk 0:32:32]} 40... Rf3 {[%clk 0:04:41]} 41. Ke4 {[%clk 0:32:20]} 41... Rf1
{[%clk 0:04:24]} 42. a4 {[%clk 0:30:46]} 42... Kh7 {[%clk 0:00:40]} 43. Rb6
{[%clk 0:31:00]} 43... Ra1 {[%clk 0:00:34]} 44. Rb4 {[%clk 0:31:00]} 44... Kh6
{[%clk 0:00:38]} 45. Kf3 {[%clk 0:31:05]} 45... g6 {[%clk 0:00:36]} 46. Kg3
{[%clk 0:31:19]} 46... Ra3+ {[%clk 0:00:48]} 47. Kg2 {[%clk 0:31:34]} 47... Rc3
{[%clk 0:00:52]} 48. a5 {[%clk 0:31:14]} 48... Rc2+ {[%clk 0:01:18]} 49. Kg3
{[%clk 0:31:26]} 49... Ra2 {[%clk 0:01:46]} 50. Rb5 {[%clk 0:31:45]} 50... Ra3+
{[%clk 0:02:11]} 51. Kh2 {[%clk 0:30:57]} 51... h4 {[%clk 0:02:19]} 52. Kg2
{[%clk 0:13:04]} 52... g5 {[%clk 0:02:31]} 53. Kh2 {[%clk 0:12:36]} 53... Kh5
{[%clk 0:02:48]} 54. Kg2 {[%clk 0:12:02]} 54... h3+ {[%clk 0:03:01]} 55. Kh2
{[%clk 0:11:12]} 55... Kh4 {[%clk 0:03:25]} 56. Rb8 {[%clk 0:11:07]} 56... Ra2+
{[%clk 0:03:39]} 57. Kg1 {[%clk 0:11:17]} 57... g4 {[%clk 0:03:49]} 58. Rb4
{[%clk 0:11:00]} 58... h2+ {[%clk 0:03:59]} 59. Kh1 {[%clk 0:11:08]} 59... Kh3
{[%clk 0:04:22]} 0-1

[Variant "Standard"]
[Site "Europe Echecs"]

[Event "Championnat du monde jeunes U10"]
[Date "2024.11.25"]
[White "Zhou, Guoyu"]
[Black "Larion, Iustin"]
[WhiteElo "1809"]
[BlackElo "1925"]
[Round "10.16"]
[Result "0-1"]
[TimeControl "5400+30"]

1. d4 {[%clk 1:30:59]} 1... Nf6 {[%clk 1:30:51]} 2. c4 {[%clk 1:31:26]} 2... e6
{[%clk 1:31:13]} 3. Nc3 {[%clk 1:31:53]} 3... Bb4 {[%clk 1:31:32]} 4. Bg5 {[%clk
1:32:03]} 4... c5 {[%clk 1:31:43]} 5. Nf3 {[%clk 1:32:21]} 5... h6 {[%clk
1:31:59]} 6. Bd2 {[%clk 1:32:30]} 6... cxd4 {[%clk 1:32:10]} 7. Nxd4 {[%clk
1:32:49]} 7... O-O {[%clk 1:32:24]} 8. a3 {[%clk 1:31:41]} 8... Be7 {[%clk
1:32:44]} 9. e3 {[%clk 1:23:50]} 9... Nc6 {[%clk 1:31:53]} 10. Be2 {[%clk
1:23:19]} 10... d5 {[%clk 1:25:54]} 11. Nxc6 {[%clk 1:23:29]} 11... bxc6 {[%clk
1:26:21]} 12. O-O {[%clk 1:23:14]} 12... e5 {[%clk 1:19:05]} 13. Qc2 {[%clk
1:11:24]} 13... Be6 {[%clk 1:12:49]} 14. b3 {[%clk 1:08:03]} 14... Rc8 {[%clk
1:09:19]} 15. Rfd1 {[%clk 1:07:52]} 15... Qb6 {[%clk 1:07:09]} 16. Na4 {[%clk
1:07:21]} 16... Qb8 {[%clk 1:02:02]} 17. c5 {[%clk 1:04:14]} 17... Ne4 {[%clk
1:00:30]} 18. Bc1 {[%clk 0:59:05]} 18... f5 {[%clk 0:52:18]} 19. b4 {[%clk
0:56:41]} 19... Nf6 {[%clk 0:44:58]} 20. Nc3 {[%clk 0:49:34]} 20... Rcd8 {[%clk
0:38:09]} 21. Bf1 {[%clk 0:46:33]} 21... Qc7 {[%clk 0:35:10]} 22. Ne2 {[%clk
0:42:46]} 22... Ne4 {[%clk 0:33:32]} 23. Ng3 {[%clk 0:36:04]} 23... Nxg3 {[%clk
0:31:55]} 24. hxg3 {[%clk 0:36:14]} 24... Bf6 {[%clk 0:29:43]} 25. Bb2 {[%clk
0:34:53]} 25... f4 {[%clk 0:26:42]} 26. gxf4 {[%clk 0:26:54]} 26... exf4 {[%clk
0:27:01]} 27. Bxf6 {[%clk 0:27:11]} 27... Rxf6 {[%clk 0:27:13]} 28. exf4 {[%clk
0:27:21]} 28... Rxf4 {[%clk 0:25:34]} 29. g3 {[%clk 0:26:53]} 29... Rf6 {[%clk
0:25:34]} 30. Bg2 {[%clk 0:26:33]} 30... Rdf8 {[%clk 0:25:17]} 31. Rd2 {[%clk
0:25:26]} 31... h5 {[%clk 0:24:16]} 32. Qc3 {[%clk 0:10:00]} 32... h4 {[%clk
0:22:05]} 33. Re1 {[%clk 0:08:35]} 33... h3 {[%clk 0:20:34]} 34. Bh1 {[%clk
0:08:40]} 34... Bg4 {[%clk 0:14:33]} 35. Qd4 {[%clk 0:07:08]} 35... Qd7 {[%clk
0:10:52]} 36. Kh2 {[%clk 0:07:06]} 36... Qf5 {[%clk 0:08:49]} 37. f4 {[%clk
0:05:49]} 37... a6 {[%clk 0:04:33]} 38. Qe5 {[%clk 0:04:56]} 38... Qg6 {[%clk
0:03:00]} 39. Qe7 {[%clk 0:03:04]} 39... Qh6 {[%clk 0:00:53]} 40. Qe3 {[%clk
0:01:17]} 40... Re6 {[%clk 0:00:47]} 41. Qf2 {[%clk 0:01:46]} 41... Rfe8 {[%clk
0:00:48]} 42. Rxe6 {[%clk 0:02:07]} 42... Qxe6 {[%clk 0:01:12]} 43. Bf3 {[%clk
0:00:54]} 43... Bxf3 {[%clk 0:01:00]} 44. Qxf3 {[%clk 0:01:24]} 44... Qe1 {[%clk
0:01:19]} 45. Qf2 {[%clk 0:01:23]} 45... Qe4 {[%clk 0:01:27]} 46. Rd4 {[%clk
0:01:16]} 46... Qf5 {[%clk 0:01:16]} 47. Rd2 {[%clk 0:01:07]} 47... Qg4 {[%clk
0:01:26]} 48. a4 {[%clk 0:01:00]} 48... Rb8 {[%clk 0:00:38]} 49. Rb2 {[%clk
0:01:12]} 49... Qd1 {[%clk 0:00:38]} 50. a5 {[%clk 0:01:27]} 50... Re8 {[%clk
0:00:35]} 51. Rd2 {[%clk 0:01:31]} 51... Qg4 {[%clk 0:00:56]} 52. Qf1 {[%clk
0:01:23]} 52... Re3 {[%clk 0:01:07]} 53. Qxh3 {[%clk 0:01:06]} 53... Qg6 {[%clk
0:00:35]} 54. Qc8+ {[%clk 0:01:13]} 54... Re8 {[%clk 0:00:53]} 55. Qxa6 {[%clk
0:00:59]} 55... Qh5+ {[%clk 0:00:50]} 56. Kg2 {[%clk 0:00:56]} 56... Re3 {[%clk
0:00:50]} 57. Qf1 {[%clk 0:01:02]} 57... Qg6 58. Qf2 {[%clk 0:00:44]} 58... Qe4+
{[%clk 0:01:44]} 59. Kh2 {[%clk 0:00:35]} 59... Re1 {[%clk 0:02:07]} 60. g4
{[%clk 0:00:33]} 60... Qh1+ 61. Kg3 {[%clk 0:00:45]} 61... Rg1+ {[%clk 0:02:51]}
62. Qxg1 {[%clk 0:00:56]} 62... Qxg1+ {[%clk 0:03:20]} 63. Kf3 {[%clk 0:01:22]}
63... Qf1+ {[%clk 0:03:37]} 64. Ke3 {[%clk 0:01:30]} 64... Qb1 {[%clk 0:03:43]}
65. Rd4 {[%clk 0:01:16]} 65... Kf7 {[%clk 0:03:48]} 66. g5 {[%clk 0:01:18]}
66... g6 {[%clk 0:04:12]} 67. Kd2 {[%clk 0:01:06]} 67... Qb3 {[%clk 0:04:25]}
68. a6 {[%clk 0:00:34]} 68... Qa2+ {[%clk 0:04:50]} 69. Kc3 {[%clk 0:00:37]}
69... Qxa6 {[%clk 0:05:13]} 70. Kb3 {[%clk 0:00:34]} 70... Qa1 {[%clk 0:05:35]}
71. Rd2 {[%clk 0:00:50]} 71... Qb1+ {[%clk 0:05:52]} 72. Ka4 {[%clk 0:00:46]}
72... Qc1 {[%clk 0:06:12]} 73. Rh2 {[%clk 0:00:37]} 73... Qa1+ {[%clk 0:06:21]}
74. Kb3 {[%clk 0:01:01]} 74... Ke6 {[%clk 0:06:46]} 75. Rh7 {[%clk 0:00:58]}
75... d4 {[%clk 0:07:02]} 76. Rc7 {[%clk 0:01:16]} 76... Qa6 {[%clk 0:07:14]}
77. Rg7 {[%clk 0:00:51]} 77... Qd3+ {[%clk 0:07:20]} 78. Ka4 {[%clk 0:01:03]}
78... Kd5 {[%clk 0:07:41]} 79. Rd7+ {[%clk 0:01:07]} 79... Kc4 {[%clk 0:08:08]}
80. Ka5 {[%clk 0:01:23]} 80... Qa3+ {[%clk 0:08:31]} 0-1

[Variant "Standard"]
[Site "Europe Echecs"]

[Event "Championnat du monde jeunes U10"]
[Date "2024.11.25"]
[White "Cao, Frank Zhongtian"]
[Black "Mutyalapati, Modith Aaroh"]
[WhiteElo "1793"]
[BlackElo "1893"]
[Round "10.17"]
[Result "1-0"]
[TimeControl "5400+30"]

1. e4 {[%clk 1:30:58]} 1... e6 {[%clk 1:30:54]} 2. d4 {[%clk 1:31:26]} 2... d5
{[%clk 1:31:18]} 3. Nc3 {[%clk 1:31:52]} 3... Nf6 {[%clk 1:31:43]} 4. e5 {[%clk
1:32:19]} 4... Nfd7 {[%clk 1:32:07]} 5. f4 {[%clk 1:32:41]} 5... c5 {[%clk
1:32:34]} 6. Nf3 {[%clk 1:33:03]} 6... Nc6 {[%clk 1:33:00]} 7. Be3 {[%clk
1:33:25]} 7... a6 {[%clk 1:33:26]} 8. Ne2 {[%clk 1:33:47]} 8... Qb6 {[%clk
1:33:51]} 9. Qc1 {[%clk 1:34:08]} 9... Be7 {[%clk 1:34:10]} 10. c3 {[%clk
1:34:25]} 10... h6 {[%clk 1:25:01]} 11. h4 {[%clk 1:31:26]} 11... c4 {[%clk
1:04:43]} 12. h5 {[%clk 1:31:27]} 12... Qc7 {[%clk 1:00:19]} 13. g4 {[%clk
1:21:09]} 13... Nf8 {[%clk 0:56:32]} 14. Qc2 {[%clk 1:18:19]} 14... b5 {[%clk
0:47:59]} 15. a3 {[%clk 1:17:27]} 15... a5 {[%clk 0:47:47]} 16. f5 {[%clk
1:03:43]} 16... Nh7 {[%clk 0:41:20]} 17. Nf4 {[%clk 0:49:57]} 17... Nd8 {[%clk
0:33:54]} 18. fxe6 {[%clk 0:40:36]} 18... Bxe6 {[%clk 0:34:01]} 19. Rg1 {[%clk
0:32:01]} 19... Ng5 {[%clk 0:33:09]} 20. Nxg5 {[%clk 0:31:33]} 20... Bxg5 {[%clk
0:33:25]} 21. Qd2 {[%clk 0:23:24]} 21... Rb8 {[%clk 0:30:54]} 22. Nh3 {[%clk
0:18:18]} 22... Bxe3 {[%clk 0:30:41]} 23. Qxe3 {[%clk 0:18:44]} 23... b4 {[%clk
0:30:37]} 24. axb4 {[%clk 0:18:26]} 24... axb4 {[%clk 0:31:03]} 25. g5 {[%clk
0:14:50]} 25... bxc3 {[%clk 0:30:24]} 26. bxc3 {[%clk 0:15:05]} 26... Kd7 {[%clk
0:13:51]} 27. gxh6 {[%clk 0:12:47]} 27... gxh6 {[%clk 0:13:46]} 28. Nf4 {[%clk
0:11:45]} 28... Kc8 {[%clk 0:12:52]} 29. Bh3 {[%clk 0:10:28]} 29... Rb5 {[%clk
0:11:44]} 30. Bxe6+ {[%clk 0:10:13]} 30... fxe6 {[%clk 0:11:29]} 31. Rg6 {[%clk
0:03:33]} 31... Qe7 {[%clk 0:10:40]} 32. Qh3 {[%clk 0:03:15]} 32... Kb7 {[%clk
0:09:18]} 33. Nxe6 {[%clk 0:02:00]} 33... Nxe6 {[%clk 0:09:27]} 34. Rxe6 {[%clk
0:02:23]} 34... Qg5 {[%clk 0:09:54]} 35. Rg6 {[%clk 0:00:56]} 35... Qe7 {[%clk
0:10:20]} 36. Rga6 {[%clk 0:00:45]} 36... Kc7 {[%clk 0:09:41]} 37. Ra7+ {[%clk
0:00:44]} 37... Rb7 {[%clk 0:10:07]} 38. Rxb7+ {[%clk 0:00:53]} 38... Kxb7 39.
Qg2 {[%clk 0:00:39]} 39... Qh4+ {[%clk 0:09:42]} 40. Kd2 {[%clk 0:00:58]} 40...
Qg5+ {[%clk 0:10:03]} 41. Qxg5 {[%clk 0:01:22]} 41... hxg5 {[%clk 0:10:32]} 42.
Rh1 {[%clk 0:01:34]} 42... Kc7 {[%clk 0:10:58]} 43. Ke3 {[%clk 0:01:47]} 43...
Kd7 {[%clk 0:11:07]} 44. Kf3 {[%clk 0:02:03]} 44... Ke6 {[%clk 0:11:34]} 45. Kg4
{[%clk 0:02:27]} 45... Rh7 {[%clk 0:11:55]} 46. h6 {[%clk 0:02:19]} 46... Rf7
{[%clk 0:11:45]} 47. h7 {[%clk 0:02:26]} 47... Rxh7 {[%clk 0:12:11]} 48. Ra1
{[%clk 0:01:56]} 48... Rh4+ {[%clk 0:12:32]} 49. Kxg5 {[%clk 0:01:39]} 49... Rh3
{[%clk 0:13:02]} 50. Ra6+ {[%clk 0:01:54]} 50... Ke7 {[%clk 0:13:28]} 51. Ra7+
{[%clk 0:01:57]} 51... Ke6 {[%clk 0:13:52]} 52. Ra6+ {[%clk 0:02:21]} 52... Ke7
{[%clk 0:14:20]} 53. Rd6 {[%clk 0:01:51]} 53... Rxc3 {[%clk 0:14:29]} 54. Rxd5
{[%clk 0:02:13]} 54... Rd3 {[%clk 0:14:38]} 55. Kf4 {[%clk 0:01:50]} 55... Ke6
{[%clk 0:14:05]} 56. Rd6+ {[%clk 0:02:14]} 56... Ke7 {[%clk 0:14:32]} 57. Ke4
{[%clk 0:01:59]} 57... Rd1 {[%clk 0:14:53]} 58. Rc6 {[%clk 0:01:33]} 58... Rc1
{[%clk 0:15:19]} 59. Rc5 {[%clk 0:01:00]} 59... Ke6 {[%clk 0:11:02]} 60. d5+
{[%clk 0:01:17]} 60... Kd7 {[%clk 0:11:23]} 61. e6+ {[%clk 0:01:01]} 61... Kd6
{[%clk 0:11:45]} 62. Rc6+ {[%clk 0:01:25]} 62... Ke7 {[%clk 0:12:13]} 63. Kd4
{[%clk 0:01:14]} 63... Rd1+ {[%clk 0:12:28]} 64. Kxc4 {[%clk 0:01:29]} 64... Kf6
{[%clk 0:12:57]} 65. Kc5 {[%clk 0:00:50]} 65... Ra1 {[%clk 0:12:53]} 66. Kd6
{[%clk 0:00:53]} 66... Ra8 {[%clk 0:13:18]} 67. Kd7 {[%clk 0:00:42]} 67... Ra7+
{[%clk 0:13:40]} 68. Rc7 {[%clk 0:00:52]} 68... Ra8 {[%clk 0:14:00]} 69. e7
{[%clk 0:00:56]} 69... Kf7 {[%clk 0:14:27]} 70. d6 {[%clk 0:01:05]} 1-0

[Variant "Standard"]
[Site "Europe Echecs"]

[Event "Championnat du monde jeunes U10"]
[Date "2024.11.25"]
[White "Mrozowski, Nikodem"]
[Black "Kadyr, Aldiyar"]
[WhiteElo "1874"]
[BlackElo "1759"]
[Round "10.18"]
[Result "0-1"]
[TimeControl "5400+30"]

1. e4 {[%clk 1:30:36]} 1... c5 {[%clk 1:30:48]} 2. Nf3 {[%clk 1:30:57]} 2... d6
{[%clk 1:31:12]} 3. d4 {[%clk 1:31:19]} 3... cxd4 {[%clk 1:31:38]} 4. Nxd4
{[%clk 1:31:43]} 4... Nf6 {[%clk 1:31:56]} 5. Nc3 {[%clk 1:31:21]} 5... a6
{[%clk 1:32:04]} 6. Bd3 {[%clk 1:31:40]} 6... g6 {[%clk 1:27:12]} 7. O-O {[%clk
1:30:30]} 7... Bg7 {[%clk 1:27:14]} 8. Re1 {[%clk 1:30:52]} 8... O-O {[%clk
1:27:25]} 9. a4 {[%clk 1:31:18]} 9... Nc6 {[%clk 1:13:03]} 10. Nxc6 {[%clk
1:31:40]} 10... bxc6 {[%clk 1:13:31]} 11. a5 {[%clk 1:31:59]} 11... Qc7 {[%clk
1:12:21]} 12. Bf4 {[%clk 1:31:41]} 12... Rb8 {[%clk 1:06:32]} 13. b3 {[%clk
1:31:48]} 13... Ng4 {[%clk 1:03:52]} 14. Qd2 {[%clk 1:31:52]} 14... Qa7 {[%clk
0:57:02]} 15. Re2 {[%clk 1:29:36]} 15... Qd4 {[%clk 0:56:05]} 16. e5 {[%clk
1:27:35]} 16... dxe5 {[%clk 0:44:12]} 17. Ra4 {[%clk 1:25:47]} 17... Qa7 {[%clk
0:35:07]} 18. Bg3 {[%clk 1:23:17]} 18... f6 {[%clk 0:27:47]} 19. Be4 {[%clk
1:13:20]} 19... Bh6 {[%clk 0:23:21]} 20. Qd3 {[%clk 1:07:05]} 20... f5 {[%clk
0:22:27]} 21. Bxc6 {[%clk 1:05:16]} 21... f4 {[%clk 0:21:59]} 22. Bh4 {[%clk
1:00:02]} 22... g5 {[%clk 0:20:10]} 23. h3 {[%clk 1:00:03]} 23... Nf6 {[%clk
0:19:10]} 24. Bxg5 {[%clk 1:00:13]} 24... Bxg5 {[%clk 0:18:25]} 25. Rxe5 {[%clk
1:00:30]} 25... Bh6 {[%clk 0:18:17]} 26. Nd5 {[%clk 0:59:06]} 26... Nxd5 {[%clk
0:14:21]} 27. Bxd5+ {[%clk 0:59:29]} 27... e6 {[%clk 0:11:51]} 28. Bxe6+ {[%clk
0:55:36]} 28... Bxe6 {[%clk 0:12:17]} 29. Rxe6 {[%clk 0:55:48]} 29... Bg7 {[%clk
0:12:46]} 30. Rxa6 {[%clk 0:54:21]} 30... Qe7 {[%clk 0:11:15]} 31. Re4 {[%clk
0:53:57]} 31... Qg5 {[%clk 0:11:00]} 32. Ra7 {[%clk 0:47:45]} 32... Rfe8 {[%clk
0:08:04]} 33. Qc4+ {[%clk 0:46:46]} 33... Kh8 {[%clk 0:07:31]} 34. a6 {[%clk
0:35:57]} 34... f3 {[%clk 0:06:06]} 35. Rg4 {[%clk 0:33:39]} 35... Re1+ {[%clk
0:06:12]} 36. Kh2 {[%clk 0:34:04]} 36... Qe5+ {[%clk 0:06:36]} 37. g3 {[%clk
0:33:24]} 37... Rh1+ {[%clk 0:06:57]} 38. Kxh1 {[%clk 0:32:07]} 38... Qe1+
{[%clk 0:07:19]} 39. Kh2 {[%clk 0:31:47]} 39... Qxf2+ {[%clk 0:07:40]} 40. Kh1
{[%clk 0:32:11]} 40... Qg2# {[%clk 0:08:04]} 0-1

[Variant "Standard"]
[Site "Europe Echecs"]

[Event "Championnat du monde jeunes U10"]
[Date "2024.11.25"]
[White "Azimov, Yasin"]
[Black "Zabelin, Platon"]
[WhiteElo "1759"]
[BlackElo "1870"]
[Round "10.19"]
[Result "0-1"]
[TimeControl "5400+30"]

1. e4 {[%clk 1:30:55]} 1... c6 {[%clk 1:30:45]} 2. d4 {[%clk 1:31:19]} 2... d5
{[%clk 1:31:12]} 3. exd5 {[%clk 1:31:35]} 3... cxd5 {[%clk 1:31:35]} 4. Nf3
{[%clk 1:31:40]} 4... Nc6 {[%clk 1:31:46]} 5. Ne5 {[%clk 1:31:36]} 5... Nxe5
{[%clk 1:28:34]} 6. dxe5 {[%clk 1:31:52]} 6... e6 {[%clk 1:28:38]} 7. Bd3 {[%clk
1:31:54]} 7... Bc5 {[%clk 1:27:37]} 8. O-O {[%clk 1:31:23]} 8... Ne7 {[%clk
1:27:59]} 9. Nc3 {[%clk 1:27:09]} 9... a6 {[%clk 1:26:39]} 10. Re1 {[%clk
1:21:07]} 10... O-O {[%clk 1:22:03]} 11. Bg5 {[%clk 1:10:50]} 11... Qc7 {[%clk
1:12:21]} 12. Qg4 {[%clk 0:52:44]} 12... Ng6 {[%clk 1:09:41]} 13. Bxg6 {[%clk
0:49:36]} 13... fxg6 {[%clk 1:07:52]} 14. Be3 {[%clk 0:46:48]} 14... Rf5 {[%clk
1:01:49]} 15. Bxc5 {[%clk 0:31:11]} 15... Qxc5 {[%clk 1:01:55]} 16. Re2 {[%clk
0:29:22]} 16... Bd7 {[%clk 1:01:03]} 17. Rd1 {[%clk 0:28:55]} 17... Raf8 {[%clk
0:56:09]} 18. Qd4 {[%clk 0:27:54]} 18... Qe7 {[%clk 0:56:07]} 19. g3 {[%clk
0:24:01]} 19... g5 {[%clk 0:47:07]} 20. Red2 {[%clk 0:20:08]} 20... Be8 {[%clk
0:45:20]} 21. Re1 {[%clk 0:18:11]} 21... Bh5 {[%clk 0:41:00]} 22. Qb6 {[%clk
0:15:34]} 22... Bf3 {[%clk 0:38:43]} 23. Qd6 {[%clk 0:13:23]} 23... Qf7 {[%clk
0:38:45]} 24. Rd4 {[%clk 0:12:23]} 24... Qh5 {[%clk 0:35:38]} 25. Qxe6+ {[%clk
0:12:42]} 25... Kh8 {[%clk 0:36:07]} 26. h4 {[%clk 0:09:57]} 26... Bg4 {[%clk
0:32:35]} 27. Nxd5 {[%clk 0:06:27]} 27... gxh4 {[%clk 0:23:22]} 28. Rf4 {[%clk
0:06:34]} 28... hxg3 {[%clk 0:21:04]} 29. fxg3 {[%clk 0:06:47]} 29... Qh3 {[%clk
0:15:15]} 0-1

[Variant "Standard"]
[Site "Europe Echecs"]

[Event "Championnat du monde jeunes U10"]
[Date "2024.11.25"]
[White "Gusev, Daniil Den"]
[Black "Vardanyan, Armen Art."]
[WhiteElo "1863"]
[BlackElo "1735"]
[Round "10.20"]
[Result "1/2-1/2"]
[TimeControl "5400+30"]

1. e4 {[%clk 1:30:56]} 1... e6 {[%clk 1:30:43]} 2. d4 {[%clk 1:30:38]} 2... d5
{[%clk 1:31:08]} 3. Bd3 {[%clk 1:29:57]} 3... dxe4 {[%clk 1:31:33]} 4. Bxe4
{[%clk 1:30:22]} 4... Nf6 {[%clk 1:32:02]} 5. Bf3 {[%clk 1:30:40]} 5... c5
{[%clk 1:32:27]} 6. Ne2 {[%clk 1:30:30]} 6... Be7 {[%clk 1:32:46]} 7. O-O {[%clk
1:30:11]} 7... O-O {[%clk 1:32:34]} 8. Nbc3 {[%clk 1:25:10]} 8... Qa5 {[%clk
1:26:21]} 9. Qe1 {[%clk 1:21:06]} 9... Kh8 {[%clk 1:25:23]} 10. Be3 {[%clk
1:17:42]} 10... Nc6 {[%clk 1:23:11]} 11. g3 {[%clk 1:09:06]} 11... cxd4 {[%clk
1:22:20]} 12. Nxd4 {[%clk 1:09:19]} 12... Nxd4 {[%clk 1:22:15]} 13. Bxd4 {[%clk
1:09:45]} 13... Bd7 {[%clk 1:19:16]} 14. Nd5 {[%clk 0:56:05]} 14... Qxe1 {[%clk
1:18:38]} 15. Rfxe1 {[%clk 0:56:28]} 15... Nxd5 {[%clk 1:18:35]} 16. Bxd5 {[%clk
0:56:52]} 16... Bb4 {[%clk 1:18:47]} 17. Bxb7 {[%clk 0:54:24]} 17... Rab8 {[%clk
1:18:45]} 18. Bf3 {[%clk 0:45:29]} 18... Bxe1 {[%clk 1:18:16]} 19. Rxe1 {[%clk
0:45:56]} 19... Rfc8 {[%clk 1:17:59]} 20. Rc1 {[%clk 0:45:53]} 20... Bc6 {[%clk
1:17:10]} 21. Bxc6 {[%clk 0:42:33]} 21... Rxc6 {[%clk 1:17:18]} 22. c4 {[%clk
0:42:13]} 22... a5 {[%clk 1:16:55]} 23. Kf1 {[%clk 0:40:48]} 23... a4 {[%clk
1:16:45]} 24. a3 {[%clk 0:40:06]} 24... Kg8 {[%clk 1:16:00]} 25. c5 {[%clk
0:39:58]} 25... f6 {[%clk 1:14:19]} 26. Rc4 {[%clk 0:39:50]} 26... e5 {[%clk
1:13:56]} 27. Bc3 {[%clk 0:39:12]} 27... Ra8 {[%clk 1:13:01]} 28. Ke2 {[%clk
0:39:26]} 28... Kf7 {[%clk 1:12:48]} 29. Kd3 {[%clk 0:38:45]} 29... Ke6 {[%clk
1:12:58]} 30. Bb4 {[%clk 0:34:51]} 30... Rd8+ {[%clk 1:12:25]} 31. Kc2 {[%clk
0:31:03]} 31... f5 {[%clk 1:09:15]} 32. b3 {[%clk 0:28:37]} 32... axb3+ {[%clk
1:09:25]} 33. Kxb3 {[%clk 0:29:03]} 33... Rd3+ {[%clk 1:07:55]} 34. Ka4 {[%clk
0:29:02]} 34... Rd4 {[%clk 1:06:44]} 35. Rc2 {[%clk 0:29:12]} 35... Kd7 {[%clk
1:02:39]} 36. Kb5 {[%clk 0:28:53]} 36... Kc7 {[%clk 1:01:14]} 37. Ba5+ {[%clk
0:28:57]} 37... Kb7 {[%clk 1:00:58]} 38. Bb6 {[%clk 0:29:19]} 38... Rd5 {[%clk
1:01:04]} 39. Kc4 {[%clk 0:25:34]} 39... Rd4+ {[%clk 1:01:10]} 40. Kb5 {[%clk
0:25:59]} 40... Rd3 {[%clk 1:00:01]} 41. Kb4 {[%clk 0:19:55]} 41... Rd4+ {[%clk
0:59:05]} 42. Ka5 {[%clk 0:10:19]} 42... Rd5 {[%clk 0:45:05]} 43. Rb2 {[%clk
0:10:07]} 43... Rc8 {[%clk 0:43:41]} 44. a4 {[%clk 0:10:11]} 44... Kc6 {[%clk
0:43:07]} 45. Kb4 {[%clk 0:08:06]} 45... Rb8 {[%clk 0:42:00]} 46. Ka3 {[%clk
0:08:06]} 46... Ra8 {[%clk 0:41:07]} 47. Ra2 {[%clk 0:05:09]} 47... Rd3+ {[%clk
0:39:32]} 48. Kb4 {[%clk 0:05:30]} 48... Rd4+ {[%clk 0:39:38]} 49. Kb3 {[%clk
0:05:53]} 49... Rd3+ {[%clk 0:36:40]} 50. Kb4 {[%clk 0:06:17]} 50... Rd4+ {[%clk
0:34:46]} 51. Kb3 {[%clk 0:06:11]} 51... Rd3+ {[%clk 0:33:21]} 1/2-1/2

[Variant "Standard"]
[Site "Europe Echecs"]